bitfinex/quotes_ETHUSD_20240621
["timestamp","ask_amount","ask_price","bid_price","bid_amount"]
[1718932598026,0.49284193,3515.7,3513.8,0.88209]
[1718932598187,0.49284193,3515.7,3514.0,2.2709]
[1718932598385,0.49284193,3515.7,3514.0,5.2709]
[1718932598587,0.49284193,3515.8,3514.1,0.55]
[1718932598783,0.49284193,3516.2,3514.1,3.55]
[1718932598986,0.49271344,3516.2,3514.2,0.88209]
[1718932599218,0.49271344,3516.2,3514.3,0.55]
[1718932602084,0.49273859,3516.2,3514.3,0.55]
[1718932604723,0.29746542,3515.5,3514.3,0.55]
[1718932605104,0.29746542,3515.5,3514.2,0.88209]
[1718932605325,2.3822,3515.4,3514.2,0.88209]
[1718932605520,0.49278645,3515.3,3514.2,0.88209]
[1718932607335,0.49278645,3515.3,3513.8,3.88209]
[1718932607836,0.49284002,3515.3,3513.8,3.88209]
[1718932608044,0.49284002,3515.3,3513.9,0.55]
[1718932610104,0.02237251,3514.6,3513.9,0.55]
[1718932621453,0.18409833,3514.5,3513.9,0.55]
[1718932621660,0.73356211,3514.5,3513.9,0.55]
[1718932621949,0.54946378,3514.5,3513.9,0.55]
[1718932623516,0.18403999,3514.4,3513.8,3.0]
[1718932623717,0.54946378,3514.5,3513.8,3.0]
[1718932623918,0.05657651,3514.3,3513.8,3.0]
[1718932624197,0.05652727,3514.4,3513.8,3.0]
[1718932624318,0.49288534,3514.5,3513.8,3.0]
[1718932624518,0.05652727,3514.2,3513.8,3.0]
[1718932624752,0.49288534,3514.5,3513.8,3.0]
[1718932625220,0.18381796,3514.4,3513.8,3.0]
[1718932625621,0.05652727,3514.3,3513.8,3.0]
[1718932626170,0.49288534,3514.5,3513.8,3.0]
[1718932626452,0.18381676,3514.4,3513.8,3.0]
[1718932626856,0.05642527,3514.3,3513.8,3.0]
[1718932627358,0.49290054,3514.5,3513.8,3.0]
[1718932627531,0.18381878,3514.4,3513.8,3.0]
[1718932627954,0.05642527,3514.3,3513.8,3.0]
[1718932628345,0.18380296,3514.2,3513.8,3.0]
[1718932628546,2.40457251,3514.6,3513.8,3.0]
[1718932628857,0.67668092,3514.5,3513.8,3.0]
[1718932629035,0.18378084,3514.4,3513.8,3.0]
[1718932629237,0.24020611,3514.4,3513.8,3.0]
[1718932629438,0.18378084,3514.3,3513.8,3.0]
[1718932629951,0.18378084,3514.2,3513.8,3.0]
[1718932630160,0.05642174,3514.2,3513.8,3.0]
[1718932630468,0.18385154,3514.1,3513.8,3.0]
[1718932630663,0.49289924,3514.5,3513.8,3.0]
[1718932630962,0.49289924,3514.5,3513.8,3.92046191]
[1718932630963,0.18384324,3514.4,3513.8,3.92046191]
[1718932631525,0.18384324,3514.4,3513.9,0.05682143]
[1718932633341,0.18384324,3514.4,3514.0,0.55]
[1718932633567,0.18384324,3514.5,3514.1,0.05681819]
[1718932633773,0.18384324,3514.3,3514.2,0.58777182]
[1718932634290,0.18384324,3514.3,3514.2,1.13777182]
[1718932634976,0.18384324,3514.5,3514.2,1.13777182]
[1718932635174,0.24031422,3514.4,3514.2,1.13777182]
[1718932635378,0.18384324,3514.3,3514.0,3.0]
[1718932635678,0.18384324,3514.3,3513.8,3.0]
[1718932635978,0.02237251,3514.6,3513.8,3.0]
[1718932635979,0.18384324,3514.2,3513.8,3.0]
[1718932636165,0.18384324,3514.1,3513.8,3.0]
[1718932636366,0.18384324,3514.0,3513.9,0.92046191]
[1718932636572,0.18384324,3514.2,3513.9,1.47046191]
[1718932636761,0.18384324,3514.1,3513.9,1.47046191]
[1718932636956,0.51525232,3514.6,3514.0,0.55]
[1718932637258,0.18411346,3514.5,3514.0,0.87558421]
[1718932637453,0.18411346,3514.4,3513.9,3.0]
[1718932637686,0.18411346,3514.3,3513.8,3.0]
[1718932637983,0.18411346,3514.2,3513.8,3.0]
[1718932638198,0.49287981,3514.5,3513.8,3.0]
[1718932638199,0.18411346,3514.1,3513.8,3.0]
[1718932638350,0.18411346,3514.0,3513.8,3.0]
[1718932638552,0.18411346,3513.9,3513.5,0.492803]
[1718932638780,0.18411346,3513.8,3513.6,3.1162274]
[1718932639080,0.49287981,3514.5,3513.7,3.0]
[1718932639299,0.18381784,3514.4,3513.7,3.0]
[1718932639498,0.18381784,3514.3,3513.4,3.0]
[1718932639805,0.02237251,3514.6,3513.5,1.47046191]
[1718932639806,0.18381784,3514.2,3513.5,1.47046191]
[1718932640014,0.18381784,3514.1,3513.5,1.47046191]
[1718932640306,0.18381784,3514.0,3513.5,1.47046191]
[1718932640607,0.18381784,3513.9,3513.7,2.2709]
[1718932640828,0.02237251,3514.6,3513.8,0.55]
[1718932640985,0.18368937,3514.5,3513.8,3.55]
[1718932641185,0.18368937,3514.5,3513.9,0.9937696]
[1718932641429,0.18368937,3514.5,3514.0,0.55]
[1718932645802,0.18368937,3514.4,3514.0,0.55]
[1718932646011,0.18368937,3514.3,3514.0,0.55]
[1718932646190,0.18368937,3514.2,3514.0,0.55]
[1718932646397,0.18368937,3514.1,3514.0,1.23146696]
[1718932646701,0.18368937,3514.5,3514.0,0.55]
[1718932646913,0.18368937,3514.4,3513.4,3.492879]
[1718932647102,0.18368937,3514.3,3513.4,3.492879]
[1718932647296,0.18368937,3514.2,3513.4,3.492879]
[1718932647507,0.18368937,3514.1,3513.4,4.68971881]
[1718932647678,0.18368937,3514.0,3513.4,4.68971881]
[1718932647874,0.18368937,3513.9,3513.4,4.68971881]
[1718932648080,0.18368937,3513.8,3513.4,4.19683981]
[1718932648288,0.18368937,3513.8,3513.5,0.55]
[1718932648503,0.18368937,3513.7,3513.5,3.55]
[1718932648726,0.18368937,3513.6,3513.5,0.55]
[1718932648939,0.67655535,3514.2,3513.5,0.55]
[1718932649121,0.18368937,3514.1,3513.5,0.55]
[1718932649371,0.18368937,3514.0,3513.5,0.55]
[1718932649675,0.23985076,3513.9,3513.5,0.55]
[1718932649817,0.18368937,3513.8,3513.5,0.55]
[1718932650014,0.18368937,3513.8,3513.0,3.0]
[1718932650246,0.23985076,3513.7,3513.0,3.0]
[1718932650443,0.18368937,3513.6,3513.0,3.0]
[1718932650722,0.18368937,3513.5,3512.9,6.20461913]
[1718932651033,0.18368937,3513.4,3512.9,8.10237374]
[1718932651357,0.49292708,3513.8,3512.6,0.492928]
[1718932651358,2.56588937,3513.3,3512.6,0.492928]
[1718932651549,0.67661645,3513.2,3512.5,6.20461913]
[1718932651727,0.18368937,3513.1,3512.5,6.20461913]
[1718932651932,0.54888089,3513.2,3512.6,3.0]
[1718932651933,0.18368937,3513.0,3512.6,3.0]
[1718932652128,0.18368937,3512.9,3512.6,3.0]
[1718932652534,0.18368937,3512.9,3512.5,6.20461913]
[1718932652733,0.23929823,3512.8,3512.5,6.20461913]
[1718932652962,0.18368937,3512.7,3512.5,6.20461913]
[1718932653274,0.18368937,3512.7,3512.5,6.82508104]
[1718932653421,0.18368937,3512.6,3512.5,6.82508104]
[1718932653762,0.18368937,3513.1,3512.5,6.20461913]
[1718932653935,0.18368937,3513.1,3512.6,3.0]
[1718932654136,0.05534836,3513.0,3512.6,3.0]
[1718932654367,0.18368937,3512.9,3512.6,3.0]
[1718932654670,0.18368937,3512.9,3512.6,3.92046191]
[1718932654835,0.23903773,3512.8,3512.6,3.92046191]
[1718932655165,0.18368937,3512.7,3512.6,3.92046191]
[1718932655566,0.18368937,3512.7,3512.6,3.0]
[1718932655967,0.18368937,3513.1,3512.6,3.0]
[1718932656348,0.05526386,3513.0,3512.6,3.0]
[1718932656538,0.18368937,3512.9,3512.3,3.0]
[1718932656864,0.18368937,3512.9,3512.3,5.14846191]
[1718932657036,0.18368937,3512.8,3512.3,5.14846191]
[1718932657232,0.18368937,3512.7,3512.3,5.14846191]
[1718932657435,0.18368937,3512.6,3512.3,3.0]
[1718932657637,0.18368937,3512.5,3512.3,3.0]
[1718932657863,0.18368937,3512.4,3512.3,3.0]
[1718932658065,0.18368937,3512.4,3511.8,5.2709]
[1718932658268,0.49306856,3513.2,3511.9,1.69755191]
[1718932658466,0.18333446,3513.1,3511.9,4.69755191]
[1718932658673,0.18333446,3513.0,3511.9,4.69755191]
[1718932658846,0.18333446,3512.9,3512.0,1.3173071]
[1718932659057,0.18333446,3512.8,3512.1,0.55]
[1718932659242,0.18333446,3512.7,3512.2,0.78673071]
[1718932659564,0.49310837,3513.2,3512.2,0.78673071]
[1718932659759,0.05526386,3512.6,3512.2,0.78673071]
[1718932659979,0.49310837,3513.2,3512.2,0.78673071]
[1718932660279,0.23961425,3513.1,3512.2,0.78673071]
[1718932660444,0.18435039,3513.0,3512.3,0.56540378]
[1718932660847,0.23961425,3512.9,3512.1,0.55]
[1718932661045,2.3822,3515.1,3512.6,2.2709]
[1718932661268,0.02237251,3514.6,3513.2,2.2709]
[1718932661486,0.02237251,3514.6,3513.3,0.43749]
[1718932661639,0.02237251,3514.6,3513.3,0.98749]
[1718932661842,0.02237251,3514.6,3513.3,3.98749]
[1718932664264,0.02237251,3514.6,3513.4,2.2709]
[1718932664481,0.02237251,3514.6,3513.6,2.2709]
[1718932664677,0.02237251,3514.6,3513.7,0.55]
[1718932665064,0.02237251,3514.6,3513.7,3.55]
[1718932665274,0.02237251,3514.6,3513.8,2.2709]
[1718932665474,0.02237251,3514.6,3513.9,0.55]
[1718932665686,0.02237251,3514.6,3514.0,0.63709]
[1718932665883,0.02237251,3514.6,3514.1,0.55]
[1718932668152,0.02237251,3514.6,3514.2,2.2709]
[1718932668353,0.02237251,3514.6,3514.3,0.55]
[1718932668757,0.02237251,3514.6,3514.3,3.55]
[1718932668953,0.02237251,3514.6,3514.4,0.88209]
[1718932669172,0.02237251,3514.6,3514.5,0.55]
[1718932671578,0.02237251,3514.6,3514.5,3.55]
[1718932672471,0.02237251,3514.6,3514.5,5.8209]
[1718932680624,0.02237251,3514.6,3514.5,7.9249]
[1718932680816,0.02237251,3514.6,3514.5,9.260884]
[1718932682287,0.02237251,3514.6,3514.5,10.400967]
[1718932686332,0.02237251,3514.6,3514.5,12.677247]
[1718932686798,0.02237251,3514.6,3514.5,10.400967]
[1718932687125,0.02237251,3514.6,3514.5,12.677247]
[1718932687934,0.02237251,3514.6,3514.5,10.400967]
[1718932689733,0.02237251,3514.6,3514.5,12.677247]
[1718932690399,0.02237251,3514.6,3514.5,10.400967]
[1718932693144,0.02237251,3514.6,3514.5,7.746967]
[1718932693345,0.02237251,3514.6,3514.5,8.514983]
[1718932693848,0.02237251,3514.6,3514.5,4.140083]
[1718932694024,0.02237251,3514.6,3514.5,1.140083]
[1718932694765,2.40457251,3514.6,3514.0,0.63709]
[1718932694925,2.40457251,3514.6,3513.9,1.140358]
[1718932695240,2.40457251,3514.6,3513.7,6.20461913]
[1718932695837,2.40457251,3514.6,3513.7,7.34505213]
[1718932696363,2.40457251,3514.6,3513.7,6.20461913]
[1718932696537,0.04476356,3514.5,3513.7,6.20461913]
[1718932697527,0.28969717,3514.5,3513.7,6.20461913]
[1718932697763,2.3822,3514.4,3513.7,6.20461913]
[1718932697928,4.4862,3514.4,3513.7,6.20461913]
[1718932698131,0.04455579,3514.3,3513.7,6.20461913]
[1718932698328,0.04455579,3514.3,3513.8,3.0]
[1718932698527,2.3822,3514.1,3513.8,3.0]
[1718932699131,0.04396773,3514.0,3513.8,3.0]
[1718932700268,2.07056269,3513.9,3513.8,3.0]
[1718932700583,2.3822,3513.8,3513.7,6.20461913]
[1718932700881,5.1128153,3513.8,3513.3,3.0]
[1718932701053,2.07056269,3513.7,3512.9,3.0]
[1718932701250,0.72168153,3513.6,3512.9,3.0]
[1718932701452,4.45276269,3513.5,3512.9,3.0]
[1718932701646,2.07056269,3513.4,3512.8,6.20461913]
[1718932702049,0.04352028,3513.3,3512.8,6.20461913]
[1718932702256,2.07056269,3513.2,3512.8,6.20461913]
[1718932702658,2.3822,3513.5,3512.8,6.20461913]
[1718932702979,2.62042,3513.5,3512.9,3.0]
[1718932703201,2.11437895,3513.4,3512.9,3.0]
[1718932703386,0.04352028,3513.4,3512.9,3.0]
[1718932704261,2.07089105,3513.3,3512.9,3.0]
[1718932704470,0.0430586,3513.2,3512.9,3.0]
[1718932704873,2.62042,3513.5,3512.9,3.0]
[1718932705195,2.37595552,3513.4,3512.9,3.0]
[1718932705493,2.07085492,3513.3,3512.9,3.0]
[1718932705898,0.0430586,3513.2,3512.9,3.0]
[1718932706273,0.262042,3513.4,3512.9,3.0]
[1718932706479,2.07091494,3513.3,3512.9,3.0]
[1718932706682,2.11397354,3513.3,3512.9,3.0]
[1718932706860,0.0430586,3513.3,3512.9,3.0]
[1718932707060,2.3822,3513.5,3512.9,3.0]
[1718932707265,2.1138687,3513.4,3512.5,3.0]
[1718932707460,0.0430586,3513.4,3512.6,0.55]
[1718932707661,2.3822,3513.5,3512.6,0.55]
[1718932708399,2.3822,3514.0,3512.6,0.55]
[1718932708605,2.308892,3513.9,3512.7,0.34656517]
[1718932708787,2.308892,3513.9,3512.8,0.55]
[1718932708788,2.070672,3513.8,3512.8,0.55]
[1718932709367,0.04312205,3513.7,3512.8,0.55]
[1718932709583,2.3822,3514.0,3512.8,0.55]
[1718932709983,2.3822,3514.0,3512.9,0.05683866]
[1718932710184,2.3822,3514.0,3513.0,0.55]
[1718932710585,2.3822,3514.0,3512.8,0.55]
[1718932711718,2.12637251,3514.6,3512.8,0.55]
[1718932711884,2.3822,3514.5,3513.0,6.20461913]
[1718932712082,2.3822,3514.5,3513.1,4.45255191]
[1718932712284,0.02237251,3514.6,3513.1,4.45255191]
[1718932712585,0.02237251,3514.6,3513.2,0.04539601]
[1718932712893,0.04356259,3514.5,3513.1,4.45255191]
[1718932713093,0.04356259,3514.5,3513.2,1.5032071]
[1718932713294,0.04356259,3514.5,3513.3,0.55]
[1718932716618,0.02237251,3514.6,3513.3,0.55]
[1718932717036,0.04378808,3514.5,3513.3,0.55]
[1718932717225,0.04378808,3514.5,3513.4,0.5955759]
[1718932717424,0.04378808,3514.5,3513.5,0.55]
[1718932719901,0.04378808,3514.5,3513.4,0.5955759]
[1718932721505,0.04378808,3514.5,3513.5,0.55]
[1718932722240,0.02237251,3514.6,3513.5,0.55]
[1718932722534,0.47322976,3514.6,3513.5,0.55]
[1718932723038,0.02237251,3514.6,3513.6,2.2709]
[1718932723216,0.02237251,3514.6,3513.7,0.55]
[1718932723537,0.02237251,3514.6,3513.7,3.55]
[1718932725800,0.02237251,3514.6,3513.7,3.0]
[1718932725801,2.3822,3514.5,3513.7,3.0]
[1718932726038,2.3822,3514.5,3513.5,3.0]
[1718932726237,2.3822,3514.5,3513.5,3.83034021]
[1718932727018,2.3822,3514.5,3513.6,0.55]
[1718932733363,2.07006721,3514.4,3513.5,3.83034021]
[1718932733561,2.11417935,3514.4,3513.5,3.0]
[1718932733761,2.07006721,3514.3,3513.5,3.0]
[1718932733941,2.11419698,3514.3,3513.5,3.0]
[1718932734144,2.07006721,3514.2,3513.5,3.0]
[1718932734556,2.11419698,3514.1,3513.5,3.0]
[1718932734757,2.3822,3514.5,3513.5,3.0]
[1718932735059,2.31062031,3514.4,3513.5,3.0]
[1718932735243,2.07016306,3514.3,3513.5,3.0]
[1718932735441,2.3822,3514.2,3513.5,3.0]
[1718932735671,2.07016306,3514.1,3513.5,3.0]
[1718932735859,2.11421533,3514.1,3513.5,3.0]
[1718932736053,2.07016306,3514.0,3513.5,3.0]
[1718932736750,0.04405227,3513.9,3513.5,3.0]
[1718932737173,0.47368726,3514.1,3513.5,3.0]
[1718932737362,2.07019348,3514.0,3513.5,3.0]
[1718932737568,2.11424575,3514.0,3513.5,3.0]
[1718932737757,2.07019348,3513.9,3513.5,3.0]
[1718932738244,2.11424575,3513.8,3513.5,3.0]
[1718932738574,2.07019403,3513.7,3513.5,3.92046191]
[1718932738778,2.11419343,3513.7,3513.1,3.0]
[1718932738959,2.3822,3514.2,3513.2,0.55]
[1718932739281,2.07016391,3514.1,3513.3,0.97546191]
[1718932739586,0.0439994,3514.0,3513.4,0.55]
[1718932739775,2.07016391,3513.9,3513.4,0.55]
[1718932740275,2.11416331,3513.8,3513.4,0.55]
[1718932740580,2.07016391,3513.7,3513.5,0.15254619]
[1718932740946,2.11416331,3513.6,3513.5,0.15254619]
[1718932744567,2.11416331,3513.6,3513.1,3.0]
[1718932744771,2.07016391,3513.5,3513.1,3.0]
[1718932744978,2.07016391,3514.1,3513.1,3.0]
[1718932745173,2.5154003,3514.0,3513.1,3.0]
[1718932745376,2.07016391,3513.9,3513.1,3.0]
[1718932745879,0.04376344,3513.8,3513.1,3.0]
[1718932746062,2.07016391,3513.7,3513.1,3.0]
[1718932746906,0.44523639,3514.0,3513.1,3.0]
[1718932746907,2.07016391,3513.6,3513.1,3.0]
[1718932747199,0.44523639,3514.0,3513.1,3.0]
[1718932747200,2.07016391,3513.5,3513.1,3.0]
[1718932747364,2.07016391,3513.4,3513.1,3.0]
[1718932747570,2.07016391,3513.3,3513.1,3.53187854]
[1718932747777,2.07016391,3513.2,3513.1,3.0]
[1718932748354,2.07016391,3513.2,3513.1,3.55]
[1718932748695,2.07016391,3513.2,3513.1,4.52546191]
[1718932748900,2.07016391,3514.1,3513.1,0.55]
[1718932749083,2.07016391,3514.0,3513.1,3.0]
[1718932749401,2.07016391,3513.9,3513.2,0.55]
[1718932749554,2.07016391,3513.9,3512.8,0.55]
[1718932749757,2.07016391,3513.8,3512.9,1.81009]
[1718932750005,2.07016391,3513.7,3513.0,0.55]
[1718932750181,2.07016391,3513.6,3513.0,0.55]
[1718932750393,2.07016391,3513.5,3513.1,0.236009]
[1718932750593,2.07016391,3513.4,3513.0,3.0]
[1718932750800,2.07016391,3513.3,3512.7,3.0]
[1718932750951,2.07016391,3513.2,3512.8,2.92555191]
[1718932751152,2.07016391,3513.1,3512.9,3.0]
[1718932751418,0.28372141,3515.1,3512.7,3.0]
[1718932751419,2.07016391,3513.0,3512.7,3.0]
[1718932751707,2.07016391,3512.9,3512.5,6.20461913]
[1718932752001,2.11379346,3512.8,3512.5,6.20461913]
[1718932752300,2.07016391,3512.7,3512.5,6.20461913]
[1718932752480,2.07016391,3512.7,3512.6,0.62046191]
[1718932753013,2.07016391,3512.7,3512.6,3.62046191]
[1718932753367,2.07016391,3513.3,3512.6,3.62046191]
[1718932753591,0.04347449,3512.7,3512.6,3.0]
[1718932753796,2.07016391,3513.1,3512.6,3.0]
[1718932754115,2.07016391,3513.0,3512.6,3.0]
[1718932754316,2.07016391,3512.9,3512.6,3.0]
[1718932754459,2.07016391,3512.8,3512.6,3.0]
[1718932754706,2.07016391,3512.7,3512.6,3.0]
[1718932755048,2.07016391,3512.7,3512.1,5.2709]
[1718932755247,2.07016391,3512.6,3512.2,0.55]
[1718932755423,2.07016391,3512.5,3512.2,6.09465131]
[1718932755622,2.3822,3513.4,3512.2,6.09465131]
[1718932755623,2.07016391,3512.4,3512.2,6.09465131]
[1718932755841,2.3822,3513.4,3512.2,3.55]
[1718932756027,2.07078244,3513.3,3512.2,3.55]
[1718932757609,2.07075738,3513.2,3512.2,3.55]
[1718932757809,2.07075738,3513.1,3512.3,1.20255191]
[1718932758004,2.07075738,3513.0,3512.4,0.55]
[1718932758323,0.04347449,3512.9,3512.4,0.55]
[1718932758527,2.07075738,3512.8,3512.4,0.55]
[1718932758739,2.07075738,3512.8,3512.5,0.47525519]
[1718932758938,2.11423187,3512.7,3512.5,0.47525519]
[1718932759109,2.07075738,3512.6,3512.4,0.55]
[1718932759308,0.49304701,3513.3,3512.4,0.55]
[1718932759512,2.11422654,3513.2,3512.4,0.55]
[1718932759717,2.07075205,3513.1,3512.4,0.55]
[1718932759917,2.07075205,3513.1,3512.5,0.47525519]
[1718932760191,2.07075205,3513.0,3512.5,0.47525519]
[1718932760313,2.07075205,3512.9,3512.4,0.55]
[1718932760516,2.07075205,3512.9,3512.3,0.55]
[1718932760729,0.04347449,3512.8,3512.3,0.55]
[1718932760954,2.07075205,3512.7,3512.3,1.75255191]
[1718932761355,2.07075205,3512.6,3512.3,1.75255191]
[1718932761567,2.07075205,3512.5,3512.2,3.0]
[1718932761870,2.07075205,3512.4,3512.2,3.0]
[1718932762030,2.07075205,3512.3,3512.2,3.0]
[1718932762757,2.07075205,3513.0,3512.2,3.0]
[1718932763073,0.04325599,3512.3,3512.2,3.0]
[1718932763234,2.07075205,3512.3,3512.2,3.0]
[1718932763440,2.56386808,3512.9,3512.2,3.0]
[1718932763636,0.04325599,3512.3,3512.2,3.0]
[1718932763868,2.07075205,3512.3,3512.2,3.0]
[1718932764018,2.07075205,3512.9,3512.2,3.0]
[1718932764219,0.04325599,3512.3,3512.2,3.0]
[1718932764420,2.07075205,3512.3,3512.2,3.0]
[1718932764765,2.56386808,3512.7,3512.2,3.0]
[1718932764968,2.07075205,3512.6,3512.2,3.0]
[1718932765116,2.07075205,3512.5,3512.2,3.0]
[1718932765435,2.07075205,3512.4,3512.2,3.0]
[1718932765636,2.07075205,3512.3,3512.2,3.92046191]
[1718932765941,2.07075205,3513.0,3512.2,3.0]
[1718932766258,0.04325599,3512.9,3512.2,3.0]
[1718932766466,2.07075205,3512.8,3512.2,3.0]
[1718932766758,2.56387275,3512.8,3512.2,3.0]
[1718932766941,4.70933932,3512.7,3512.2,3.0]
[1718932767161,0.4931207,3512.6,3512.2,3.0]
[1718932767360,2.56438108,3512.6,3512.1,6.20461913]
[1718932767594,2.07126038,3512.5,3512.1,6.20461913]
[1718932767738,0.70505811,3512.4,3512.1,6.20461913]
[1718932767941,2.11412156,3512.3,3512.1,6.20461913]
[1718932768171,2.07126038,3512.2,3511.2,6.20461913]
[1718932768538,2.42496951,3512.1,3511.2,6.20461913]
[1718932768742,2.56438108,3512.0,3511.3,3.0]
[1718932768973,2.07126038,3511.9,3511.3,3.0]
[1718932769282,2.6072884,3511.9,3511.3,3.0]
[1718932769455,2.56451889,3511.8,3511.3,3.0]
[1718932769673,2.56451889,3511.7,3511.3,3.0]
[1718932769875,0.49325851,3512.0,3511.4,2.2709]
[1718932770075,0.04276951,3511.6,3511.4,2.2709]
[1718932770271,2.07142357,3511.9,3511.4,2.2709]
[1718932770272,0.49325851,3512.9,3511.4,2.2709]
[1718932770477,2.07137376,3512.8,3511.4,3.41845191]
[1718932770764,2.11388234,3512.8,3511.5,3.0]
[1718932770991,2.07137376,3512.7,3511.5,3.0]
[1718932771373,0.04250858,3512.6,3511.5,3.0]
[1718932771595,2.33208784,3512.5,3511.5,3.0]
[1718932771898,2.56463227,3512.4,3511.5,3.0]
[1718932772073,2.07137376,3512.3,3511.5,3.0]
[1718932772275,2.56457163,3512.3,3511.5,3.0]
[1718932772472,2.56457163,3512.2,3511.5,3.0]
[1718932772673,2.07137376,3512.1,3511.5,3.0]
[1718932772999,2.07137376,3512.1,3511.5,4.2623071]
[1718932773188,2.07137376,3512.0,3511.5,4.2623071]
[1718932773405,2.07137376,3511.9,3511.5,3.0]
[1718932773560,0.49319787,3512.8,3511.4,2.2709]
[1718932773561,2.07137376,3511.8,3511.4,2.2709]
[1718932773761,0.49319787,3512.4,3511.4,2.2709]
[1718932773977,0.04257557,3511.7,3511.5,1.14755191]
[1718932774195,0.49319787,3512.4,3511.5,3.0]
[1718932774498,0.04257557,3511.6,3511.4,5.2709]
[1718932774702,0.49319787,3512.4,3511.4,2.2709]
[1718932774904,2.0714092,3512.3,3511.4,3.41845191]
[1718932775080,2.11398477,3512.3,3511.5,3.0]
[1718932775281,2.0714092,3512.2,3511.5,3.0]
[1718932775590,2.56461128,3512.2,3511.5,4.2623071]
[1718932775795,2.0714092,3512.1,3511.5,4.2623071]
[1718932776001,3.28942928,3513.7,3511.6,0.55]
[1718932776002,0.49314906,3512.8,3511.6,0.55]
[1718932776302,2.07117239,3512.7,3511.6,1.20332071]
[1718932776502,2.07117239,3512.6,3511.6,1.20332071]
[1718932776674,0.04254384,3512.6,3511.7,0.77365278]
[1718932776874,2.07094338,3512.5,3511.8,0.55]
[1718932777074,0.49314906,3513.2,3511.8,0.55]
[1718932777270,2.07095778,3513.1,3511.9,0.49769735]
[1718932777470,2.11366382,3513.1,3511.9,3.49769735]
[1718932777675,2.07095778,3513.0,3512.0,2.2709]
[1718932777902,2.07095778,3513.0,3512.0,5.2709]
[1718932778201,2.07095778,3513.0,3512.1,1.55232165]
[1718932778418,2.11366382,3512.9,3512.1,4.55232165]
[1718932778605,2.3822,3513.3,3512.1,4.55232165]
[1718932778606,2.07095778,3512.8,3512.1,4.55232165]
[1718932778772,2.07095778,3512.8,3512.2,1.0320919]
[1718932778773,2.07095778,3512.7,3512.2,1.0320919]
[1718932778972,2.07095778,3512.7,3512.2,4.0320919]
[1718932779206,0.49307492,3513.2,3512.2,1.0320919]
[1718932779389,0.04270604,3512.6,3512.2,1.0320919]
[1718932779589,0.49307492,3513.2,3512.2,1.0320919]
[1718932779797,0.04270604,3512.5,3512.1,3.0]
[1718932780010,0.49307492,3513.0,3512.0,5.2709]
[1718932780216,0.04270604,3512.4,3512.1,1.25232165]
[1718932780416,0.49307492,3513.2,3512.1,3.0]
[1718932780707,0.04270604,3512.3,3512.0,5.2709]
[1718932780892,0.49307492,3513.2,3512.0,5.2709]
[1718932781095,2.07092812,3513.1,3512.1,1.18185974]
[1718932781320,2.11364473,3513.1,3512.1,4.18185974]
[1718932781490,2.07092812,3513.0,3512.1,4.18185974]
[1718932781696,2.07092812,3512.9,3512.2,1.56573789]
[1718932782016,2.07092812,3512.8,3512.3,0.55]
[1718932782309,0.49307492,3513.6,3512.3,0.55]
[1718932782517,2.07075804,3513.5,3512.4,0.51157379]
[1718932782695,2.60670824,3513.5,3512.4,0.51157379]
[1718932782898,2.07075804,3513.4,3512.4,0.51157379]
[1718932783417,0.04287528,3513.3,3512.4,0.51157379]
[1718932783629,2.07075804,3513.2,3512.4,0.51157379]
[1718932783828,2.07075804,3513.2,3512.5,0.56273117]
[1718932784115,2.11363332,3513.1,3512.5,0.56273117]
[1718932784312,2.07075804,3513.0,3512.3,3.55]
[1718932784514,2.07075804,3513.0,3512.4,3.0]
[1718932784731,2.07075804,3513.0,3512.3,0.55]
[1718932785033,2.11363332,3512.9,3512.4,2.2709]
[1718932785199,0.49304908,3514.0,3512.6,2.2709]
[1718932785401,2.12637251,3514.6,3512.7,2.2709]
[1718932785402,2.07040568,3513.9,3512.7,2.2709]
[1718932785607,2.07040568,3513.8,3512.9,2.2709]
[1718932785824,2.07040568,3513.7,3513.0,0.55]
[1718932786046,0.49296855,3514.4,3513.0,3.55]
[1718932786210,2.12637251,3514.6,3513.1,3.27213183]
[1718932786211,2.0701981,3514.3,3513.1,3.27213183]
[1718932786410,2.0701981,3514.2,3513.2,3.55]
[1718932786721,2.0701981,3514.1,3513.2,3.55]
[1718932786936,2.0701981,3514.0,3513.3,0.68221318]
[1718932787145,2.0701981,3513.9,3513.3,0.68221318]
[1718932787319,2.0701981,3513.8,3513.4,0.7504345]
[1718932787822,0.04218227,3513.7,3513.4,0.7504345]
[1718932788020,0.49291799,3514.2,3513.4,0.7504345]
[1718932788221,2.07014866,3514.1,3513.4,0.7504345]
[1718932788435,2.07014866,3514.0,3513.2,3.55]
[1718932788638,2.11239796,3514.0,3513.2,3.55]
[1718932788837,2.07014866,3513.9,3513.2,3.55]
[1718932789306,2.07014866,3513.8,3513.2,3.55]
[1718932789502,0.02237251,3514.6,3513.3,0.58209]
[1718932789713,2.07012329,3514.5,3513.3,6.78670913]
[1718932789917,2.11237259,3514.5,3513.4,3.0]
[1718932790147,2.07012329,3514.4,3513.4,3.0]
[1718932790750,2.07012329,3514.3,3513.4,3.0]
[1718932790931,2.07012329,3514.2,3513.4,4.26076091]
[1718932791534,2.07012329,3514.1,3513.4,4.26076091]
[1718932791714,2.07012329,3514.0,3513.4,4.26076091]
[1718932791914,2.07012329,3513.9,3513.4,3.0]
[1718932792118,2.07012329,3513.8,3513.4,3.0]
[1718932792346,2.07012329,3513.7,3513.4,3.0]
[1718932792551,0.70554559,3514.4,3513.1,2.2709]
[1718932792851,2.11252857,3514.3,3513.1,2.2709]
[1718932793022,2.07024046,3514.2,3513.1,2.2709]
[1718932793219,2.07024046,3514.2,3513.2,2.37555191]
[1718932793479,4.45244046,3514.2,3513.2,3.0]
[1718932793621,2.07024046,3514.1,3513.1,2.2709]
[1718932793822,2.60546917,3514.1,3513.1,2.2709]
[1718932794313,2.07024046,3514.0,3513.1,2.2709]
[1718932794512,2.07024046,3514.0,3513.1,3.76113968]
[1718932794721,2.07024046,3514.0,3513.2,3.0]
[1718932794924,0.04226342,3513.9,3513.2,3.0]